bitfinex/quotes_BTCUSD_20250518
["timestamp","ask_amount","ask_price","bid_price","bid_amount"]
[1747596708663,0.13239837,104220.0,104210.0,0.22070697]
[1747596708885,0.15158826,104220.0,104210.0,0.22070697]
[1747596709109,0.15158808,104220.0,104210.0,0.26409076]
[1747596709581,0.13970375,104220.0,104210.0,0.26409076]
[1747596709810,0.16848743,104220.0,104210.0,0.26509076]
[1747596710067,0.150298,104220.0,104210.0,0.26609076]
[1747596710292,0.1311094,104220.0,104210.0,0.26609076]
[1747596710522,0.0983094,104220.0,104210.0,0.53704807]
[1747596710975,0.001,104220.0,104210.0,0.53704807]
[1747596711876,0.001,104220.0,104210.0,0.26609076]
[1747596712093,0.001,104220.0,104210.0,0.53704807]
[1747596714280,0.001,104220.0,104210.0,0.55110572]
[1747596714721,0.001,104220.0,104210.0,0.28014841]
[1747596715619,0.001,104220.0,104210.0,0.55110572]
[1747596715841,0.001,104220.0,104210.0,0.28014841]
[1747596716274,0.001,104220.0,104210.0,0.26222386]
[1747596716506,0.001,104220.0,104210.0,0.26097019]
[1747596716720,0.1321094,104220.0,104210.0,0.15175955]
[1747596716941,0.1321094,104220.0,104210.0,0.16888146]
[1747596717168,0.1321094,104220.0,104210.0,0.13725503]
[1747596717372,0.0993094,104220.0,104210.0,0.10975449]
[1747596717586,0.0993094,104220.0,104210.0,0.09342998]
[1747596717798,0.0993094,104220.0,104210.0,0.15367718]
[1747596720919,0.14230375,104220.0,104210.0,0.09342998]
[1747596721137,0.1327094,104220.0,104210.0,0.09342998]
[1747596721373,0.0993094,104220.0,104210.0,0.09342998]
[1747596721634,0.0993094,104220.0,104210.0,0.36438729]
[1747596721841,0.0993094,104220.0,104210.0,0.09342998]
[1747596722049,0.0993094,104220.0,104210.0,0.15215223]
[1747596722998,0.0993094,104220.0,104210.0,0.09342998]
[1747596723705,0.002,104220.0,104210.0,0.09342998]
[1747596723946,0.002,104220.0,104210.0,0.43342998]
[1747596724218,0.002,104220.0,104210.0,0.72132814]
[1747596724700,0.002,104220.0,104210.0,1.08959485]
[1747596724947,0.002,104220.0,104210.0,0.74498963]
[1747596725190,0.001,104220.0,104210.0,1.28342425]
[1747596725462,0.001,104220.0,104210.0,1.28242425]
[1747596725688,0.003,104220.0,104210.0,1.28642425]
[1747596726101,0.001,104220.0,104210.0,1.28242425]
[1747596726370,0.002,104220.0,104210.0,0.74150963]
[1747596726609,0.003,104220.0,104210.0,1.01746694]
[1747596726855,0.003,104220.0,104210.0,1.29759547]
[1747596727089,0.000471,104240.0,104230.0,0.57520556]
[1747596727308,0.000471,104240.0,104230.0,0.65503369]
[1747596727540,0.000471,104240.0,104230.0,0.924791]
[1747596727764,0.000471,104240.0,104230.0,0.925991]
[1747596727981,0.000471,104240.0,104230.0,0.93516222]
[1747596728380,0.001471,104240.0,104230.0,0.93716222]
[1747596728843,0.002471,104240.0,104230.0,0.94236222]
[1747596729342,0.002471,104240.0,104230.0,0.65446406]
[1747596729562,0.002471,104240.0,104230.0,0.92542137]
[1747596729981,0.002471,104240.0,104230.0,0.94188307]
[1747596730427,0.002471,104240.0,104230.0,0.95762392]
[1747596731329,0.002471,104240.0,104230.0,1.05493332]
[1747596731770,0.002471,104240.0,104230.0,1.0453398]
[1747596731999,0.03775647,104240.0,104230.0,0.37043292]
[1747596732224,0.32245688,104240.0,104230.0,0.03043292]
[1747596732434,0.41976628,104240.0,104230.0,0.03043292]
[1747596732652,0.34303135,104240.0,104230.0,0.03043292]
[1747596733121,0.34303135,104240.0,104230.0,0.02643292]
[1747596733122,0.3516245,104240.0,104230.0,0.02643292]
[1747596733334,0.3516245,104240.0,104230.0,0.32380512]
[1747596733335,0.35162385,104240.0,104230.0,0.32380512]
[1747596733519,0.33243838,104240.0,104230.0,0.05384781]
[1747596733763,0.33143838,104240.0,104230.0,0.001]
[1747596734518,0.33243838,104240.0,104230.0,0.003]
[1747596734942,0.33143838,104240.0,104230.0,0.001]
[1747596735348,0.32384532,104240.0,104230.0,0.002]
[1747596736030,0.14157291,104240.0,104230.0,0.46484064]
[1747596736252,0.36221654,104240.0,104230.0,0.28354254]
[1747596736467,0.36221654,104240.0,104230.0,0.2927049]
[1747596736686,0.35262403,104240.0,104230.0,0.2927049]
[1747596737076,0.15116596,104240.0,104230.0,0.30229842]
[1747596737292,0.16075902,104240.0,104230.0,0.30029842]
[1747596737510,0.06344962,104240.0,104230.0,0.2907049]
[1747596737738,0.07304277,104240.0,104230.0,0.30989203]
[1747596737957,0.002471,104240.0,104230.0,0.30989203]
[1747596738192,0.002471,104240.0,104230.0,0.58084934]
[1747596738693,0.01206341,104240.0,104230.0,0.68084934]
[1747596738915,0.02165592,104240.0,104230.0,0.40989203]
[1747596739135,0.03124861,104240.0,104230.0,0.40989203]
[1747596739367,0.24442176,104240.0,104230.0,0.17963371]
[1747596739596,0.34173116,104240.0,104230.0,0.10916236]
[1747596739815,0.34173116,104240.0,104230.0,0.00916236]
[1747596740251,0.03837462,104230.0,104220.0,0.22527924]
[1747596740475,0.13568402,104230.0,104220.0,0.21568471]
[1747596740738,0.34887457,104230.0,104220.0,0.0973094]
[1747596740932,0.33928041,104230.0,104220.0,0.58895287]
[1747596741149,0.34887421,104230.0,104220.0,0.0973094]
[1747596741360,0.34887421,104230.0,104220.0,0.30840103]
[1747596741578,0.34987421,104230.0,104220.0,0.30080622]
[1747596741798,0.3402806,104230.0,104220.0,0.002]
[1747596742049,0.3412806,104230.0,104220.0,0.01116599]
[1747596743889,0.3412806,104230.0,104220.0,0.002]
[1747596744111,0.6812806,104230.0,104220.0,0.002]
[1747596744770,0.6802806,104230.0,104220.0,0.002]
[1747596744994,0.24421152,104210.0,104200.0,0.01345748]
[1747596745203,0.34152092,104210.0,104200.0,0.01345748]
[1747596745428,0.14000467,104210.0,104200.0,0.01345748]
[1747596745654,0.03529081,104210.0,104200.0,0.48044473]
[1747596745889,0.05448254,104210.0,104200.0,0.002]
[1747596746135,0.04269527,104210.0,104200.0,0.01159683]
[1747596746339,0.20251561,104210.0,104200.0,0.07569534]
[1747596746545,0.21951561,104210.0,104200.0,0.07569534]
[1747596746760,0.23970661,104210.0,104200.0,0.007]
[1747596746966,0.24930252,104210.0,104200.0,0.007]
[1747596747319,0.22270651,104210.0,104200.0,0.01712408]
[1747596747747,0.23230233,104210.0,104200.0,0.01712408]
[1747596747959,0.25889833,104210.0,104200.0,0.01712408]
[1747596748209,0.25889824,104210.0,104200.0,0.08640998]
[1747596748351,0.25889815,104210.0,104200.0,0.08640998]
[1747596748554,0.23011088,104210.0,104200.0,0.08640998]
[1747596748736,0.21311125,104210.0,104200.0,0.08737219]
[1747596748945,0.21311097,104210.0,104200.0,0.08640998]
[1747596749166,0.23230251,104210.0,104200.0,0.08640998]
[1747596749372,0.23230251,104210.0,104200.0,0.01616188]
[1747596749586,0.24900251,104210.0,104200.0,0.01616188]
[1747596749976,0.26460251,104210.0,104200.0,0.01616188]
[1747596750144,0.25500724,104210.0,104200.0,0.01616188]
[1747596750780,0.35231664,104210.0,104200.0,0.01616188]
[1747596750999,0.33312547,104210.0,104200.0,0.01616188]
[1747596751216,0.33312492,104210.0,104200.0,0.21769719]
[1747596751439,0.33312492,104210.0,104200.0,0.78468183]
[1747596751440,0.0343,104210.0,104200.0,0.78468183]
[1747596751652,0.21311078,104210.0,104200.0,0.31769531]
[1747596751857,0.21311078,104210.0,104200.0,0.30809866]
[1747596752067,0.002,104210.0,104200.0,1.12468183]
[1747596752767,0.002,104210.0,104200.0,0.6672915]
[1747596752978,0.002,104210.0,104200.0,1.12468183]
[1747596754721,0.002,104210.0,104200.0,0.6672915]
[1747596755619,0.002,104210.0,104200.0,0.67874898]
[1747596755819,0.002,104210.0,104200.0,1.13613931]
[1747596755972,0.002,104210.0,104200.0,1.13693931]
[1747596756203,0.002,104210.0,104200.0,1.23424871]
[1747596756405,0.002,104210.0,104200.0,1.23504871]
[1747596757018,0.002,104210.0,104200.0,1.24958956]
[1747596757435,0.002,104210.0,104200.0,0.79219923]
[1747596757616,0.002,104210.0,104200.0,1.24878956]
[1747596758654,0.002,104210.0,104200.0,0.79219923]
[1747596758888,0.002,104210.0,104200.0,0.79600345]
[1747596759100,0.002,104210.0,104200.0,1.25339378]
[1747596759302,0.002,104210.0,104200.0,0.79600345]
[1747596759509,0.002,104210.0,104200.0,1.23885293]
[1747596759701,0.002,104210.0,104200.0,1.23725293]
[1747596759949,0.002,104210.0,104200.0,0.77026632]
[1747596760162,0.002,104210.0,104200.0,0.7798626]
[1747596760368,0.002,104210.0,104200.0,1.23725293]
[1747596761169,0.002,104210.0,104200.0,0.7806626]
[1747596761368,0.002,104210.0,104200.0,1.23805293]
[1747596761601,0.002,104210.0,104200.0,1.23725293]
[1747596762496,0.002,104210.0,104200.0,0.57295889]
[1747596762497,0.22031533,104210.0,104200.0,0.57295889]
[1747596762711,0.23581533,104210.0,104200.0,0.59215182]
[1747596762938,0.25500724,104210.0,104200.0,0.03142358]
[1747596763167,0.25500724,104210.0,104200.0,0.37142358]
[1747596763393,0.25500724,104210.0,104200.0,0.03142358]
[1747596763628,0.25500724,104210.0,104200.0,0.0573627]
[1747596763857,0.24541133,104210.0,104200.0,0.3973627]
[1747596764087,0.25500752,104210.0,104200.0,0.3973627]
[1747596764312,0.26460343,104210.0,104200.0,0.3973627]
[1747596764515,0.25500743,104210.0,104200.0,0.3973627]
[1747596764951,0.24541115,104210.0,104200.0,0.40695962]
[1747596765387,0.24541115,104210.0,104200.0,0.06695962]
[1747596765618,0.24541115,104210.0,104200.0,0.0573627]
[1747596765826,0.25500688,104210.0,104200.0,0.06695962]
[1747596766054,0.25500688,104210.0,104200.0,0.0573627]
[1747596766272,0.25500688,104210.0,104200.0,0.03142358]
[1747596766707,0.23581598,104210.0,104200.0,0.03142358]
[1747596767155,0.33312538,104210.0,104200.0,0.03142358]
[1747596767909,0.33312538,104210.0,104200.0,0.01616188]
[1747596768126,0.33312538,104210.0,104200.0,0.02222904]
[1747596768341,0.33312538,104210.0,104200.0,0.01616188]
[1747596769639,0.6187138,104210.0,104200.0,0.01616188]
[1747596769850,0.34766623,104210.0,104200.0,0.01616188]
[1747596770504,0.6187138,104210.0,104200.0,0.01616188]
[1747596770718,0.70544915,104210.0,104200.0,0.01116188]
[1747596770929,0.34966623,104210.0,104200.0,0.002]
[1747596771145,0.35166623,104210.0,104200.0,0.003]
[1747596771384,0.58667616,104200.0,104190.0,0.00721872]
[1747596771597,0.95503313,104200.0,104190.0,0.00721872]
[1747596771833,0.68398556,104200.0,104190.0,0.00721872]
[1747596772040,0.95503313,104200.0,104190.0,0.00721872]
[1747596772288,0.34398556,104200.0,104190.0,0.00721872]
[1747596772518,0.68398556,104200.0,104190.0,0.00721872]
[1747596772699,0.68498556,104200.0,104190.0,0.00826609]
[1747596773407,1.27045223,104190.0,104180.0,0.002]
[1747596773612,1.36776163,104190.0,104180.0,0.002]
[1747596774305,1.6388092,104190.0,104180.0,0.002]
[1747596774520,0.24449258,104170.0,104160.0,0.0137604]
[1747596774759,0.34180198,104170.0,104160.0,0.0137604]
[1747596775196,0.34180143,104170.0,104160.0,0.28480797]
[1747596775396,0.35140186,104170.0,104160.0,0.34314211]
[1747596775604,0.34180254,104170.0,104160.0,0.34314211]
[1747596775812,0.34180254,104170.0,104160.0,0.07209454]
[1747596776229,0.33220294,104170.0,104160.0,0.07209454]
[1747596776429,0.33220294,104170.0,104160.0,0.0137604]
[1747596776874,0.33320294,104170.0,104160.0,0.0137604]
[1747596777295,0.33420294,104170.0,104160.0,0.0137604]
[1747596777950,0.34380226,104170.0,104160.0,0.0137604]
[1747596778157,0.35340139,104170.0,104160.0,0.0137604]
[1747596778361,0.35340139,104170.0,104160.0,0.05105672]
[1747596779180,0.34380226,104170.0,104160.0,0.05105672]
[1747596780237,0.22729385,104170.0,104160.0,0.05105672]
[1747596780463,0.2035928,104170.0,104160.0,0.52468125]
[1747596780682,0.002,104170.0,104160.0,0.92215676]
[1747596780910,0.002,104170.0,104160.0,1.19600433]
[1747596781130,0.002,104170.0,104160.0,0.65390919]
[1747596781349,0.002,104170.0,104160.0,1.20513917]
[1747596781576,0.002,104170.0,104160.0,0.66004574]
[1747596781782,0.002,104170.0,104160.0,0.93109331]
[1747596782651,0.002,104170.0,104160.0,0.66004574]
[1747596782920,0.002,104170.0,104160.0,0.93109331]
[1747596783133,0.002,104170.0,104160.0,0.94256231]
[1747596783785,0.002,104170.0,104160.0,0.92766231]
[1747596784906,0.002,104170.0,104160.0,0.93976231]
[1747596785349,0.002,104170.0,104160.0,0.92766231]
[1747596785779,0.22279153,104170.0,104160.0,0.41166056]
[1747596785993,0.74579193,104170.0,104160.0,0.43086123]
[1747596786208,0.7196928,104170.0,104160.0,0.63547172]
[1747596786425,0.502,104170.0,104160.0,0.90465025]
[1747596786854,0.70359289,104170.0,104160.0,0.61440257]
[1747596787024,0.70359289,104170.0,104160.0,0.40019156]
[1747596787232,0.75589181,104170.0,104160.0,0.02289524]
[1747596787820,0.75589181,104170.0,104160.0,0.0137604]
[1747596788635,0.74629277,104170.0,104160.0,0.0137604]
[1747596788836,0.73669345,104170.0,104160.0,0.0137604]
[1747596789036,0.83400285,104170.0,104160.0,0.01675889]
[1747596789246,1.33400285,104170.0,104160.0,0.05358168]
[1747596789451,1.34360217,104170.0,104160.0,0.05358168]
[1747596789657,1.24629277,104170.0,104160.0,0.05454597]
[1747596789860,1.24629277,104170.0,104160.0,0.05358168]
[1747596791019,1.23669345,104170.0,104160.0,0.01675889]
[1747596791237,1.22709385,104170.0,104160.0,0.01675889]
[1747596792301,1.23669354,104170.0,104160.0,0.01675889]
[1747596792521,0.23381234,104160.0,104140.0,0.51476704]
[1747596792739,0.2434123,104160.0,104140.0,0.51228704]
[1747596792948,0.25301245,104160.0,104150.0,0.00960135]
[1747596793162,0.23381224,104160.0,104150.0,0.48228117]
[1747596793369,0.23381224,104160.0,104150.0,0.20163225]
[1747596793585,0.23381224,104160.0,104140.0,0.60959673]
[1747596793586,0.24341239,104160.0,104140.0,0.60959673]
[1747596793799,0.23395331,104160.0,104150.0,0.47267982]
[1747596794016,0.23595331,104160.0,104150.0,0.08107878]
[1747596794297,0.2551537,104160.0,104140.0,0.60915602]
[1747596794524,0.20163151,104150.0,104140.0,0.34304767]
[1747596794743,0.20163151,104150.0,104140.0,0.37185392]
[1747596794744,0.19203072,104150.0,104140.0,0.37185392]
[1747596795157,0.20163142,104150.0,104140.0,0.61875883]
[1747596795377,0.24343231,104150.0,104140.0,0.33624226]
[1747596795594,0.24343231,104150.0,104140.0,0.22933078]
[1747596795736,0.25303338,104150.0,104140.0,0.22933078]
[1747596795951,0.26263463,104150.0,104140.0,0.01807756]
[1747596796179,0.26263454,104150.0,104140.0,0.01807756]
[1747596796433,0.27323589,104150.0,104140.0,0.01807756]
[1747596796605,0.26463519,104150.0,104140.0,0.04311974]
[1747596796811,0.25503366,104150.0,104140.0,0.06232446]
[1747596797126,0.23583161,104150.0,104140.0,0.2639758]
[1747596797298,0.25503403,104150.0,104140.0,0.05272219]
[1747596797504,0.24543268,104150.0,104140.0,0.05272219]
[1747596797732,0.26463528,104150.0,104140.0,0.04311974]
[1747596797957,0.58543323,104150.0,104140.0,0.00916101]
[1747596798159,0.68274263,104150.0,104140.0,0.00916101]
[1747596798577,0.9537902,104150.0,104140.0,0.00916101]
[1747596799276,1.6405902,104150.0,104140.0,0.00916101]
[1747596799491,0.23307079,104130.0,104120.0,0.03040809]
[1747596799698,0.33998329,104130.0,104120.0,0.03597507]
[1747596800396,0.33038019,104130.0,104120.0,0.03597507]
[1747596800865,0.33138019,104130.0,104120.0,0.03597507]
[1747596801113,0.33238019,104130.0,104120.0,0.0451472]
[1747596801310,0.33237991,104130.0,104120.0,0.23723325]
[1747596801531,0.35158574,104130.0,104120.0,0.0451472]
[1747596801784,0.36118912,104130.0,104120.0,0.0547515]
[1747596801960,0.35158574,104130.0,104120.0,0.0547515]
[1747596802216,0.36118912,104130.0,104120.0,0.25644166]
[1747596802434,0.36118912,104130.0,104120.0,0.0451472]
[1747596802657,0.36118912,104130.0,104120.0,0.06435571]
[1747596802887,0.36118912,104130.0,104120.0,0.0547515]
[1747596803335,0.36118912,104130.0,104120.0,0.06435571]
[1747596803781,0.36118912,104130.0,104120.0,0.05288671]
[1747596803988,0.36118912,104130.0,104120.0,0.0432825]
[1747596804205,0.36118912,104130.0,104120.0,0.05288671]
[1747596804438,0.35158574,104130.0,104120.0,0.25457687]
[1747596804680,0.04300264,104130.0,104120.0,0.27378445]
[1747596804881,0.002,104130.0,104120.0,0.54783155]
[1747596805100,0.002,104130.0,104120.0,0.5744724]
[1747596805344,0.66538627,104150.0,104140.0,0.22085541]
[1747596805590,0.63388627,104150.0,104140.0,0.29117149]
[1747596805851,0.00014107,104160.0,104150.0,0.22083421]
[1747596806288,0.01934091,104160.0,104150.0,0.23000634]
[1747596807171,0.26305395,104160.0,104150.0,0.22040554]
[1747596807413,0.26305386,104160.0,104150.0,0.23960768]
[1747596807625,0.25545343,104160.0,104150.0,0.30036621]
[1747596807834,0.04424085,104160.0,104150.0,0.30036566]
[1747596808045,0.06344087,104160.0,104150.0,0.29076477]
[1747596808263,0.36236279,104160.0,104150.0,0.06032959]
[1747596808464,0.36236353,104160.0,104150.0,0.01877338]
[1747596808683,0.35276366,104160.0,104150.0,0.02837501]
[1747596808901,0.35276366,104160.0,104150.0,0.03797626]
[1747596809025,0.35276366,104160.0,104150.0,0.23960814]
[1747596809243,0.34316314,104160.0,104150.0,0.24920912]
[1747596809439,0.35276347,104160.0,104150.0,0.28488087]
[1747596809664,0.15115086,104160.0,104150.0,0.29448121]
[1747596809868,0.15115086,104160.0,104150.0,0.28488032]
[1747596810049,0.16075129,104160.0,104150.0,0.28488032]
[1747596810264,0.36236418,104160.0,104150.0,0.26567818]
[1747596810499,0.36236418,104160.0,104150.0,0.27527934]
[1747596810699,0.36236418,104160.0,104150.0,0.28488041]
[1747596810876,0.36236409,104160.0,104150.0,0.28488041]
[1747596811307,0.35276357,104160.0,104150.0,0.28488041]
[1747596811522,0.00314107,104160.0,104150.0,0.56552887]
[1747596811689,0.00314107,104160.0,104150.0,0.58006972]
[1747596811894,0.00314107,104160.0,104150.0,0.59226972]
[1747596813140,0.00314107,104160.0,104150.0,1.02957912]
[1747596813458,0.00314107,104160.0,104150.0,1.30352669]
[1747596814100,0.00114107,104160.0,104150.0,1.30352669]
[1747596814312,0.98504456,104170.0,104160.0,0.25045385]
[1747596814523,0.93668758,104170.0,104160.0,0.98155349]
[1747596814763,0.85342203,104170.0,104160.0,1.39828842]
[1747596815022,0.85342203,104170.0,104160.0,1.34613582]
[1747596815853,0.85342203,104170.0,104160.0,0.79404068]
[1747596816063,0.85342203,104170.0,104160.0,1.06508825]
[1747596816275,0.83040413,104170.0,104160.0,1.35530795]
[1747596816490,0.83140413,104170.0,104160.0,1.35630795]
[1747596817491,0.83240413,104170.0,104160.0,1.34830795]
[1747596817651,0.83240413,104170.0,104160.0,1.07436038]
[1747596818053,0.83240413,104170.0,104160.0,1.34540795]
[1747596818282,0.83240413,104170.0,104160.0,1.34830795]
[1747596819523,0.83240413,104170.0,104160.0,1.36354742]
[1747596823990,0.31604419,104210.0,104190.0,0.01454085]
[1747596823991,0.002,104210.0,104190.0,0.01454085]
[1747596824216,0.002,104230.0,104220.0,0.23522673]
[1747596824431,0.002,104230.0,104220.0,0.5062743]
[1747596824649,0.03384233,104230.0,104220.0,0.55109144]
[1747596824898,0.0317,104220.0,104210.0,0.55604135]
[1747596825126,0.0317,104220.0,104210.0,0.57523234]
[1747596825346,0.0317,104220.0,104210.0,0.89054145]
[1747596825771,0.0317,104220.0,104210.0,0.61949388]
[1747596825979,0.0317,104220.0,104210.0,0.89054145]
[1747596826446,0.0327,104220.0,104210.0,0.89354145]
[1747596826867,0.0327,104220.0,104210.0,0.90265425]
[1747596827528,0.0337,104220.0,104210.0,0.63360668]
[1747596827772,0.06248387,104220.0,104210.0,0.27906583]
[1747596827997,0.34210066,104220.0,104210.0,0.05837434]
[1747596828205,0.34210066,104220.0,104210.0,0.005]
[1747596829776,0.05289099,104210.0,104200.0,0.22072502]
[1747596829997,0.1693924,104210.0,104200.0,0.23032139]
[1747596830210,0.16939231,104210.0,104200.0,0.23991767]
[1747596830456,0.36131247,104210.0,104200.0,0.04384374]
[1747596830678,0.23523531,104200.0,104190.0,0.00657817]
[1747596830890,0.33254471,104200.0,104190.0,0.00657817]
[1747596831565,0.34214136,104200.0,104190.0,0.18805815]
[1747596831797,0.34214136,104200.0,104190.0,0.18349619]
[1747596832026,0.34214136,104200.0,104190.0,0.05022422]
[1747596832027,0.33254471,104200.0,104190.0,0.05022422]
[1747596832258,0.32294797,104200.0,104190.0,0.00349442]
[1747596832475,0.05119615,104180.0,104170.0,0.21153916]
[1747596832736,0.05119615,104180.0,104170.0,0.18229753]
[1747596832948,0.06079446,104180.0,104170.0,0.18229753]
[1747596833159,0.36207832,104180.0,104170.0,0.24240364]
[1747596833296,0.16770299,104180.0,104170.0,0.261602]
[1747596833508,0.16770299,104180.0,104170.0,0.265602]
[1747596833715,0.15910422,104180.0,104170.0,0.265602]
[1747596833913,0.1687028,104180.0,104170.0,0.265602]
[1747596834117,0.1697028,104180.0,104170.0,0.268602]
[1747596834535,0.1697028,104180.0,104170.0,0.25900296]
[1747596834760,0.1697028,104180.0,104170.0,0.268602]
[1747596835576,0.1697028,104180.0,104170.0,0.27775001]
[1747596836017,0.17930147,104180.0,104170.0,0.27775001]
[1747596836379,0.1697028,104180.0,104170.0,0.27775001]
[1747596836593,0.36167877,104180.0,104170.0,0.26815097]
[1747596836770,0.33288349,104180.0,104170.0,0.01614801]
[1747596836996,0.60399795,104180.0,104170.0,0.01614801]
[1747596837198,0.33288349,104180.0,104170.0,0.01614801]
[1747596837811,0.60299795,104180.0,104170.0,0.01314801]
[1747596837933,0.23379335,104170.0,104160.0,0.002]
[1747596838136,0.33110275,104170.0,104160.0,0.002]
[1747596839573,0.33110275,104170.0,104160.0,0.003]
[1747596840667,0.60321721,104170.0,104160.0,0.003]
[1747596841332,0.33210275,104170.0,104160.0,0.003]
[1747596841547,0.60321721,104170.0,104160.0,0.003]
[1747596843727,1.23710348,104170.0,104160.0,0.003]
[1747596844447,1.57710348,104170.0,104160.0,0.003]
[1747596844665,0.23321271,104160.0,104150.0,0.001]
[1747596844889,0.60163657,104160.0,104150.0,0.001]
[1747596845110,1.8466373,104160.0,104150.0,0.001]
[1747596845586,1.57552284,104160.0,104150.0,0.001]
[1747596845848,0.02880874,104130.0,104120.0,0.22089695]
[1747596846079,0.15771814,104130.0,104120.0,0.22103802]
[1747596846319,0.15771814,104130.0,104120.0,0.22403757]
[1747596846743,0.14811495,104130.0,104120.0,0.22403757]
[1747596846973,0.0983094,104130.0,104120.0,0.26863896]
[1747596847197,0.11751504,104130.0,104120.0,0.26863896]
[1747596847427,0.0983094,104130.0,104120.0,0.26863896]
[1747596847919,0.10791195,104130.0,104120.0,0.26863896]
[1747596848122,0.002,104130.0,104120.0,0.27163896]
[1747596848570,0.02120528,104130.0,104120.0,0.26863941]
[1747596848790,0.04430255,104130.0,104120.0,0.26863941]
[1747596849085,0.07311138,104130.0,104120.0,0.26863941]
[1747596849840,0.06350819,104130.0,104120.0,0.2686396]
[1747596850295,0.05390528,104130.0,104120.0,0.28784699]
[1747596850547,0.04430255,104130.0,104120.0,0.28784699]
[1747596850759,0.05701148,104130.0,104120.0,0.28784699]
[1747596850993,0.04740829,104130.0,104120.0,0.27824334]
[1747596851200,0.01160255,104130.0,104120.0,0.28784699]
[1747596851424,0.01160255,104130.0,104120.0,0.30238784]
[1747596851629,0.002,104130.0,104120.0,0.30238784]
[1747596851874,0.002,104130.0,104120.0,0.30538721]
[1747596852298,0.002,104130.0,104120.0,0.66668721]
[1747596852517,0.002,104130.0,104120.0,0.76399661]
[1747596852741,0.002,104130.0,104120.0,0.64538721]
[1747596852982,0.002,104130.0,104120.0,0.65150749]
[1747596853192,0.01160264,104130.0,104120.0,0.65150749]
[1747596853406,0.002,104130.0,104120.0,0.65150749]
[1747596853617,0.01160255,104130.0,104120.0,0.65150749]
[1747596853844,0.002,104130.0,104120.0,0.65150749]
[1747596855997,0.002,104130.0,104120.0,0.76481689]
[1747596856217,0.002,104130.0,104120.0,0.77861689]
[1747596857763,0.002,104130.0,104120.0,1.04999207]
[1747596858475,0.002,104130.0,104120.0,0.74881689]
[1747596859772,0.002,104130.0,104120.0,1.02019207]
[1747596860192,0.002,104130.0,104120.0,1.04999207]
[1747596860634,0.002,104130.0,104120.0,1.04907207]
[1747596861859,0.002,104150.0,104140.0,0.57539626]
[1747596862078,0.002,104150.0,104140.0,0.89950032]
[1747596862292,0.002,104150.0,104140.0,0.62812514]
[1747596862501,0.002,104150.0,104140.0,0.63724479]
[1747596862937,0.002,104150.0,104140.0,0.93841997]
[1747596863148,0.003,104150.0,104140.0,1.03772937]
[1747596863387,0.004,104150.0,104140.0,1.03972937]
[1747596864031,0.0365,104180.0,104170.0,0.23533266]
[1747596864238,0.0365,104180.0,104170.0,0.27793405]
[1747596864239,0.04609812,104180.0,104170.0,0.27793405]
[1747596864471,0.05569652,104180.0,104170.0,0.27793405]
[1747596864693,0.0365,104180.0,104170.0,0.27793405]
[1747596864882,0.0194,104180.0,104170.0,0.2870537]
[1747596865152,0.03859606,104180.0,104170.0,0.2870537]
[1747596865811,0.04259606,104180.0,104170.0,0.2870537]
[1747596866232,0.03299794,104180.0,104170.0,0.2870537]
[1747596866456,0.05219409,104180.0,104170.0,0.2870537]
[1747596866875,0.03279409,104180.0,104170.0,0.2870537]
[1747596867287,0.02319597,104180.0,104170.0,0.2870537]
[1747596867507,0.004,104180.0,104170.0,0.2870537]
[1747596867724,0.01859803,104180.0,104170.0,0.2880537]
[1747596867939,0.05409464,104180.0,104170.0,0.2880537]
[1747596868144,0.04449624,104180.0,104170.0,0.2880537]
[1747596868439,0.05779624,104180.0,104170.0,0.2870537]
[1747596868659,0.05379624,104180.0,104170.0,0.2870537]
[1747596868884,0.04619803,104180.0,104170.0,0.2870537]
[1747596869081,0.05579624,104180.0,104170.0,0.2870537]
[1747596869539,0.04619794,104180.0,104170.0,0.2870537]
[1747596869767,0.05579606,104180.0,104170.0,0.2870537]
[1747596870196,0.06539427,104180.0,104170.0,0.2870537]
[1747596870402,0.05579606,104180.0,104170.0,0.2870537]
[1747596870613,0.03949606,104180.0,104170.0,0.2870537]
[1747596870794,0.02989803,104180.0,104170.0,0.2870537]
[1747596871055,0.002,104180.0,104170.0,0.2870537]
[1747596872122,0.01159794,104180.0,104170.0,0.2870537]
[1747596872331,0.002,104180.0,104170.0,0.2870537]
[1747596872791,0.002,104180.0,104170.0,0.89842888]
[1747596873011,0.002,104180.0,104170.0,0.91742888]
[1747596873269,0.002,104180.0,104170.0,0.90994647]
[1747596873484,0.002,104180.0,104170.0,1.13073828]
[1747596874793,0.002,104180.0,104170.0,1.09573828]
[1747596875011,0.002,104180.0,104170.0,0.8243631]
[1747596875464,0.002,104180.0,104170.0,0.7270537]
[1747596875465,0.06889519,104180.0,104170.0,0.7270537]
[1747596875667,0.06889519,104180.0,104170.0,0.6270537]
[1747596875668,0.0688951,104180.0,104170.0,0.6270537]
[1747596875885,0.05929652,104180.0,104170.0,0.6270537]
[1747596876105,0.0401,104180.0,104170.0,0.6270537]
[1747596876944,0.04969803,104180.0,104170.0,0.6270537]
[1747596877161,0.04969794,104180.0,104170.0,0.6270537]
[1747596877612,0.0401,104180.0,104170.0,0.6270537]
[1747596877815,0.04969794,104180.0,104170.0,0.6270537]
[1747596878266,0.0401,104180.0,104170.0,0.6270537]
[1747596878703,0.04969812,104180.0,104170.0,0.6270537]
[1747596878916,0.05929633,104180.0,104170.0,0.6270537]
[1747596879143,0.0401,104180.0,104170.0,0.6270537]
[1747596879607,0.0213,104180.0,104170.0,0.7270537]
[1747596880714,0.0415,104180.0,104170.0,0.7270537]
[1747596881338,0.002,104180.0,104170.0,0.99842888]
[1747596881787,0.002,104180.0,104170.0,0.7270537]
[1747596886140,0.0416,104180.0,104170.0,0.7270537]
[1747596887228,0.0416,104180.0,104170.0,0.74230053]
[1747596888401,0.0222,104180.0,104170.0,0.74230053]
[1747596888615,0.002,104180.0,104170.0,0.74230053]
[1747596889321,0.002,104180.0,104170.0,0.87790993]
[1747596889543,0.002,104190.0,104180.0,0.59907061]
[1747596889834,0.002,104190.0,104180.0,0.76364974]
[1747596890063,0.002,104190.0,104180.0,0.72534974]
[1747596890293,0.002,104190.0,104180.0,0.73446939]
[1747596890523,0.0417,104190.0,104180.0,0.63715999]
[1747596890971,0.0417,104190.0,104180.0,0.64315999]
[1747596892131,0.0417,104190.0,104180.0,0.65845971]
[1747596895299,0.0417,104190.0,104180.0,0.64315999]
[1747596900407,0.0227,104190.0,104180.0,0.64315999]
[1747596900643,0.0428,104190.0,104180.0,0.64315999]
[1747596901106,0.07159188,104190.0,104180.0,0.25043129]
[1747596901357,0.07159179,104190.0,104180.0,0.60002941]
[1747596901586,0.05239702,104190.0,104180.0,0.60002941]